bitfinex-derivatives/quotes_BNBF0:USTF0_20250316
["timestamp","ask_amount","ask_price","bid_price","bid_amount"]
[1742097383396,2.47130862,609.87,609.02,4.622]
[1742097385308,0.32786885,610.0,609.02,4.622]
[1742097385309,2.47130862,609.99,609.02,4.622]
[1742097385508,0.3278796,609.98,609.02,4.622]
[1742097396722,2.47130862,609.89,609.02,4.622]
[1742097400223,2.47130862,609.88,609.02,4.622]
[1742097402425,0.32793874,609.87,609.02,4.622]
[1742097402626,2.79924736,609.87,609.02,4.622]
[1742097404223,0.32793874,609.87,609.02,4.622]
[1742097412433,0.32793874,609.87,609.02,5.945]
[1742097415630,2.47130862,609.85,609.02,5.945]
[1742097415835,0.32795487,609.84,609.02,5.945]
[1742097417535,2.47130862,609.7,609.02,5.945]
[1742097419230,2.47130862,609.75,609.02,5.945]
[1742097420936,2.47130862,609.72,609.02,5.945]
[1742097422432,2.47130862,609.79,609.02,5.945]
[1742097424836,2.47130862,609.74,609.02,5.945]
[1742097426641,2.47130862,609.7,609.02,5.945]
[1742097428643,2.47130862,609.72,609.02,5.945]
[1742097430541,0.32795487,609.84,609.02,5.945]
[1742097440652,2.47130862,609.7,609.02,5.945]
[1742097442353,2.47130862,609.76,609.02,5.945]
[1742097443853,0.32795487,609.84,609.02,5.945]
[1742097443854,2.47130862,609.65,609.02,5.945]
[1742097446266,2.47130862,609.72,609.02,5.945]
[1742097447963,0.32795487,609.84,609.02,5.945]
[1742097447964,2.47130862,609.6,609.02,5.945]
[1742097450169,2.47130862,609.57,609.02,5.945]
[1742097450573,2.47130862,609.57,609.02,1.323]
[1742097451472,2.47130862,609.5,609.02,1.323]
[1742097453268,2.47130862,609.49,609.02,1.323]
[1742097454774,2.47130862,609.33,609.02,1.323]
[1742097456675,2.47130862,609.8,609.02,1.323]
[1742097458473,0.32795487,609.84,609.02,1.323]
[1742097467081,2.47130862,609.71,609.02,1.323]
[1742097468477,2.47130862,609.65,609.02,1.323]
[1742097469586,2.47130862,609.65,609.02,3.203]
[1742097469882,2.47130862,609.73,609.02,3.203]
[1742097471385,2.47130862,609.72,609.02,3.203]
[1742097472784,2.47130862,609.71,609.02,3.203]
[1742097474384,2.47130862,609.7,609.02,3.203]
[1742097476385,2.47130862,609.68,609.02,3.203]
[1742097476981,2.47130862,609.68,609.02,5.048]
[1742097480183,2.47130862,609.83,609.02,5.048]
[1742097480384,2.79926887,609.83,609.02,5.048]
[1742097481787,0.32796025,609.83,609.02,5.048]
[1742097482887,3.95178082,609.83,609.02,5.048]
[1742097483087,3.62382057,609.82,609.02,5.048]
[1742097483290,3.62382057,609.81,609.02,5.048]
[1742097483489,3.62382057,609.8,609.02,5.048]
[1742097483689,3.62382057,609.79,609.02,6.39]
[1742097483894,3.62382057,609.78,609.02,6.39]
[1742097484100,3.62382057,609.77,609.02,6.39]
[1742097484305,3.62382057,609.76,609.02,6.39]
[1742097484498,2.47130862,609.82,609.02,6.39]
[1742097485494,0.32796025,609.83,609.02,6.39]
[1742097489497,2.47130862,609.72,609.02,6.39]
[1742097491299,0.32796025,609.83,609.02,6.39]
[1742097503405,2.47130862,609.79,609.02,6.39]
[1742097505804,2.47130862,609.73,609.02,6.39]
[1742097507908,0.32796025,609.83,609.02,6.39]
[1742097509306,2.47130862,610.15,609.02,6.39]
[1742097509504,0.32779362,610.14,609.02,6.39]
[1742097514812,0.32779362,610.14,609.03,0.32839104]
[1742097517610,0.32779362,610.14,609.03,2.06639104]
[1742097518016,0.32779362,610.14,609.03,3.67639104]
[1742097518712,0.32779362,610.14,609.03,6.66839104]
[1742097549043,3.61317072,610.51,609.03,6.66839104]
[1742097549243,3.94077104,610.5,609.03,6.66839104]
[1742097549544,3.94077641,610.49,609.03,6.66839104]
[1742097549744,3.94078178,610.48,609.03,6.66839104]
[1742097550039,3.94078714,610.47,609.03,6.66839104]
[1742097550243,3.94079251,610.46,609.03,6.66839104]
[1742097550445,3.94079788,610.45,609.03,6.66839104]
[1742097550644,0.32762716,610.45,609.03,6.66839104]
[1742097551147,2.47130862,610.42,609.03,6.66839104]
[1742097552751,0.32762716,610.45,609.03,6.66839104]
[1742097554152,2.47130862,610.34,609.03,6.66839104]
[1742097555754,2.47130862,610.21,609.03,6.66839104]
[1742097557450,2.47130862,610.22,609.03,6.66839104]
[1742097559457,2.47130862,610.22,609.04,1.02008077]
[1742097559655,2.47130862,610.22,609.05,1.34846103]
[1742097559858,2.47130862,610.22,609.06,1.34842692]
[1742097560053,2.47130862,610.22,609.07,0.32836948]
[1742097560660,2.47130862,610.21,609.07,0.32836948]
[1742097561955,0.32762716,610.45,609.07,0.32836948]
[1742097562154,0.32762716,610.45,609.08,2.92664338]
[1742097562355,0.32762716,610.45,609.09,0.32835869]
[1742097563255,0.32762716,610.45,609.1,1.781]
[1742097563462,0.32762716,610.45,609.12,0.32834252]
[1742097565163,0.32762716,610.45,609.13,2.20111991]
[1742097565366,0.32762716,610.45,609.14,0.32833174]
[1742097565566,0.32762716,610.45,609.14,1.34873215]
[1742097565763,0.32762716,610.45,609.15,2.20103293]
[1742097565957,0.32762716,610.45,609.16,0.32832096]
[1742097566357,0.32762716,610.45,609.17,2.20112237]
[1742097566561,0.32762716,610.45,609.18,0.32831018]
[1742097568863,0.32762716,610.45,609.19,1.18064906]
[1742097569059,0.32762716,610.45,609.2,0.3282994]
[1742097574075,2.47130862,610.44,609.2,0.3282994]
[1742097574570,2.47130862,610.44,609.21,1.02222283]
[1742097574770,2.47130862,610.44,609.22,0.32828863]
[1742097575867,0.32762716,610.45,609.22,0.32828863]
[1742097578872,0.32762716,610.45,609.23,2.059]
[1742097579172,0.32762716,610.45,609.24,0.32827785]
[1742097580772,2.47130862,610.41,609.24,0.32827785]
[1742097582481,2.47130862,610.4,609.24,0.32827785]
[1742097584184,2.47130862,610.42,609.24,0.32827785]
[1742097585980,2.47130862,610.41,609.24,0.32827785]
[1742097587182,2.47130862,610.4,609.24,0.32827785]
[1742097588983,3.60732463,610.41,609.24,0.32827785]
[1742097589190,2.79893578,610.45,609.24,0.32827785]
[1742097590990,0.32762716,610.45,609.24,0.32827785]
[1742097592592,2.47130862,610.4,609.24,0.32827785]
[1742097594199,2.47130862,610.4,609.25,1.575]
[1742097594602,2.47130862,610.37,609.25,1.575]
[1742097594996,2.47130862,610.37,609.25,1.90327246]
[1742097595397,2.47130862,610.37,609.26,1.874]
[1742097596295,2.47130862,610.32,609.26,1.874]
[1742097597404,2.47130862,610.29,609.26,1.874]
[1742097599297,2.47130862,610.19,609.26,1.874]
[1742097601398,2.47130862,610.04,609.26,1.874]
[1742097601602,2.47130862,610.04,609.27,1.02274997]
[1742097601797,2.47130862,610.04,609.28,1.02274997]
[1742097602000,2.47130862,610.04,609.29,1.02274997]
[1742097602200,2.47130862,610.04,609.26,1.874]
[1742097602201,2.47130862,610.04,609.3,1.02274997]
[1742097602395,2.47130862,610.04,609.26,1.874]
[1742097602600,2.47130862,610.04,609.27,1.02286368]
[1742097602797,0.32762716,610.45,609.28,1.02286368]
[1742097602798,2.47130862,610.22,609.28,1.02286368]
[1742097603004,2.47130862,610.22,609.29,1.02286368]
[1742097603203,2.47130862,610.22,609.3,1.02286368]
[1742097603403,2.47130862,610.22,609.28,1.1833693]
[1742097603603,2.47130862,610.22,609.29,1.02294106]
[1742097603805,2.47130862,610.22,609.3,1.02294106]
[1742097604005,2.47130862,610.22,609.29,1.875]
[1742097604203,2.47130862,610.22,609.3,1.02301076]
[1742097604405,2.47130862,610.22,609.29,1.875]
[1742097604904,2.47130862,610.31,609.29,1.875]
[1742097606499,2.47130862,610.17,609.29,1.875]
[1742097608106,2.47130862,610.16,609.29,1.875]
[1742097610111,2.47130862,610.27,609.29,1.875]
[1742097611511,2.47130862,610.27,609.25,0.32827246]
[1742097612210,2.47130862,610.3,609.25,0.32827246]
[1742097614212,2.47130862,610.4,609.25,0.32827246]
[1742097614413,0.32765936,610.39,609.25,0.32827246]
[1742097615815,3.94247522,610.39,609.25,0.32827246]
[1742097616015,3.61481586,610.38,609.25,0.32827246]
[1742097616213,3.61481586,610.37,609.25,0.32827246]
[1742097616516,3.94249133,610.36,609.25,0.32827246]
[1742097616715,3.94249669,610.35,609.25,0.32827246]
[1742097616916,0.32768083,610.35,609.25,0.32827246]
[1742097624521,2.47130862,610.31,609.25,0.32827246]
[1742097626025,2.47130862,610.3,609.25,0.32827246]
[1742097627826,2.47130862,610.22,609.25,0.32827246]
[1742097629728,2.47130862,610.24,609.25,0.32827246]
[1742097631226,2.47130862,610.23,609.25,0.32827246]
[1742097633528,2.47130862,610.1,609.25,0.32827246]
[1742097635439,2.47130862,609.99,609.25,0.32827246]
[1742097636727,0.32768083,610.35,609.25,0.32827246]
[1742097639135,2.47130862,610.17,609.25,0.32827246]
[1742097640535,2.47130862,610.1,609.25,0.32827246]
[1742097641932,2.47130862,610.08,609.25,0.32827246]
[1742097643539,2.47130862,609.94,609.25,0.32827246]
[1742097644942,2.47130862,610.25,609.25,0.32827246]
[1742097647141,2.47130862,610.24,609.25,0.32827246]
[1742097648737,2.47130862,610.23,609.25,0.32827246]
[1742097650643,2.47130862,610.22,609.25,0.32827246]
[1742097651841,2.47130862,610.27,609.25,0.32827246]
[1742097653138,2.47130862,610.3,609.25,0.32827246]
[1742097655443,2.47130862,610.09,609.25,0.32827246]
[1742097657447,2.47130862,610.1,609.25,0.32827246]
[1742097659646,2.47130862,610.05,609.25,0.32827246]
[1742097661447,2.47130862,610.03,609.25,0.32827246]
[1742097663347,2.47130862,609.95,609.25,0.32827246]
[1742097664750,0.32768083,610.35,609.25,0.32827246]
[1742097667848,0.32768083,610.35,609.26,1.561]
[1742097670053,2.47130862,610.28,609.26,1.561]
[1742097675663,2.47130862,610.18,609.26,1.561]
[1742097677663,2.47130862,610.07,609.26,1.561]
[1742097679258,2.47130862,609.9,609.26,1.561]
[1742097680562,2.47130862,609.96,609.26,1.561]
[1742097684867,2.47130862,609.93,609.26,1.561]
[1742097689568,2.47130862,609.97,609.26,1.561]
[1742097690869,2.47130862,609.94,609.26,1.561]
[1742097692974,2.47130862,609.92,609.26,1.561]
[1742097694777,2.47130862,610.46,609.26,1.561]
[1742097695981,2.47130862,610.46,609.27,0.219]
[1742097696281,3.60372682,610.85,609.27,0.219]
[1742097696282,2.47130862,610.52,609.27,0.219]
[1742097698377,2.47130862,610.54,609.27,0.219]
[1742097699885,2.47130862,611.36,609.27,0.219]
[1742097699886,2.47130862,610.57,609.27,0.219]
[1742097701384,2.47130862,610.6,609.27,0.219]
[1742097703385,2.47130862,609.97,609.27,0.219]
[1742097705187,2.47130862,609.93,609.27,0.219]
[1742097705487,2.47130862,609.93,609.27,1.758]
[1742097705989,2.47130862,609.93,609.26,1.561]
[1742097707192,2.47130862,609.85,609.26,1.561]
[1742097708694,2.47130862,610.04,609.26,1.561]
[1742097708886,0.32785272,610.03,609.19,1.304]
[1742097711998,0.32785272,610.03,609.2,1.864]
[1742097715700,0.32785272,610.03,609.21,1.739]
[1742097720302,0.32785272,610.03,609.22,1.687]
[1742097735212,2.47130862,609.79,609.22,1.687]
[1742097736812,2.47130862,609.72,609.22,1.687]
[1742097738513,2.47130862,609.71,609.22,1.687]
[1742097740116,2.47130862,609.52,609.22,1.687]
[1742097741816,2.47130862,609.63,609.22,1.687]
[1742097742417,2.47130862,609.63,609.2,1.864]
[1742097743617,2.47130862,609.95,609.2,1.864]
[1742097743815,0.3279011,609.94,609.2,1.864]
[1742097745720,0.3279011,609.94,609.21,2.051]
[1742097752716,0.3279011,609.94,609.21,0.38905618]
[1742097752923,0.3279011,609.94,609.22,1.969]
[1742097753122,0.3279011,609.94,609.06,1.498]
[1742097754523,2.47130862,609.85,609.06,1.498]
[1742097754724,0.32795487,609.84,609.06,1.498]
[1742097758325,2.47130862,609.83,609.06,1.498]
[1742097758523,0.32796562,609.82,609.06,1.498]
[1742097763934,2.47130862,609.73,609.06,1.498]
[1742097765932,0.32796562,609.82,609.06,1.498]
[1742097790448,2.79927424,609.82,609.06,1.498]
[1742097792752,2.47130862,609.57,609.06,1.498]
[1742097792946,2.47130862,609.57,609.02,1.381]
[1742097794049,2.47130862,609.59,609.02,1.381]
[1742097795451,2.47130862,609.59,609.02,2.987]
[1742097798358,2.47130862,609.55,609.02,2.987]
[1742097800361,2.47130862,609.55,609.02,1.606]
[1742097800662,0.32796562,609.82,609.02,1.606]
[1742097803061,0.32796562,609.82,608.39,0.28570959]
[1742097803262,0.32796562,609.82,609.02,1.945]
[1742097806168,0.32796562,609.82,608.4,0.32873109]
[1742097808965,2.47130862,609.38,608.4,0.32873109]
[1742097810270,2.47130862,609.36,608.4,0.32873109]
[1742097811972,2.47130862,609.28,608.41,1.02404976]
[1742097812165,2.47130862,609.28,608.42,2.54481513]
[1742097812369,2.47130862,609.28,608.43,1.35276464]
[1742097812569,2.47130862,609.28,608.44,1.35275924]
[1742097812772,2.47130862,609.28,608.45,2.99115176]
[1742097812972,2.47130862,609.28,608.46,2.99114636]
[1742097813173,2.47130862,609.28,608.47,1.35271161]
[1742097813370,2.47130862,609.28,608.48,1.35270621]
[1742097813571,2.47130862,609.28,608.49,1.35270081]
[1742097813871,2.47130862,609.61,608.5,2.21610316]
[1742097814071,2.47130862,609.61,608.51,1.02401834]
[1742097814476,2.47130862,609.61,608.52,1.19208482]
[1742097814675,2.47130862,609.61,608.53,1.02401834]
[1742097814976,2.47130862,609.61,608.54,1.19208482]
[1742097815178,2.47130862,609.54,608.54,1.19208482]
[1742097815974,2.47130862,609.54,608.5,1.19208482]
[1742097816179,2.47130862,609.54,608.51,1.02403246]
[1742097816479,2.47130862,609.54,608.52,1.02403246]
[1742097816676,2.47130862,609.54,608.53,2.21611728]
[1742097816879,2.47130862,609.54,608.54,1.02403246]
[1742097817081,2.47130862,609.54,608.53,1.19208482]
[1742097817281,2.47130862,609.54,608.54,1.02400348]
[1742097817476,2.47130862,609.65,608.49,0.32868247]
[1742097817678,2.47130862,609.65,608.5,1.02402905]
[1742097817876,2.47130862,609.65,608.51,2.21612138]
[1742097818073,2.47130862,609.65,608.52,1.02402905]
[1742097818279,2.47130862,609.65,608.53,1.02402905]
[1742097818481,2.47130862,609.65,608.54,1.02402905]
[1742097818683,2.47130862,609.65,608.53,1.19209233]
[1742097818877,2.47130862,609.7,608.54,1.02402769]
[1742097819080,2.47130862,609.7,608.53,1.19209233]
[1742097819280,2.47130862,609.7,608.54,2.21610612]
[1742097819482,2.47130862,609.7,608.54,1.19209233]
[1742097819982,2.47130862,609.7,608.55,1.02403856]
[1742097820182,2.47130862,609.7,608.49,0.32868247]
[1742097820389,2.47130862,609.72,608.5,1.02402257]
[1742097820580,2.47130862,609.72,608.51,1.02402257]
[1742097820778,2.47130862,609.72,608.52,1.02402257]
[1742097820982,2.47130862,609.72,608.53,1.02404796]
[1742097821283,2.47130862,609.72,608.54,1.02404796]
[1742097821584,2.47130862,609.72,608.55,1.02404796]
[1742097821784,2.47130862,609.74,608.55,1.02404796]
[1742097821984,2.47130862,609.74,608.56,1.19211484]
[1742097822579,2.47130862,609.74,608.49,0.32868247]
[1742097822783,2.47130862,609.74,608.5,1.02405036]
[1742097822983,2.47130862,609.68,608.51,1.02405036]
[1742097823184,2.47130862,609.68,608.52,1.02405036]
[1742097823380,2.47130862,609.68,608.53,1.02405036]
[1742097823587,2.47130862,609.68,608.54,1.02405036]
[1742097823884,2.47130862,609.68,608.55,1.02405036]
[1742097824086,2.47130862,609.68,608.56,1.02405036]
[1742097824287,2.47130862,609.68,608.57,1.02405036]
[1742097824688,2.47130862,609.56,608.57,1.02405036]
[1742097824887,2.47130862,609.56,608.49,0.32868247]
[1742097825087,2.47130862,609.56,608.5,2.2166072]
[1742097825287,2.47130862,609.56,608.51,1.02425462]
[1742097825684,2.47130862,609.56,608.52,1.19235258]
[1742097825989,2.47130862,609.56,608.53,1.02425462]
[1742097826391,2.47130862,609.62,608.54,1.19235258]
[1742097826591,2.47130862,609.62,608.55,1.02425462]
[1742097827099,2.47130862,609.62,608.54,1.19235258]
[1742097827293,2.47130862,609.62,608.56,1.19235258]
[1742097827496,2.47130862,609.6,608.56,1.19235258]
[1742097827797,2.47130862,609.6,608.5,1.19235258]
[1742097827999,2.47130862,609.6,608.51,1.02471834]
[1742097828201,2.47130862,609.6,608.5,1.19235258]
[1742097828797,2.47130862,609.6,608.49,0.32868247]
[1742097831198,0.32796562,609.82,608.49,0.32868247]
[1742097839114,2.47130862,609.68,608.49,0.32868247]
[1742097839510,2.79934955,609.68,608.49,0.32868247]
[1742097841209,2.47130862,609.42,608.49,0.32868247]
[1742097843410,2.47130862,609.33,608.49,0.32868247]
[1742097844817,2.47130862,609.17,608.49,0.32868247]
[1742097846817,2.47130862,609.22,608.49,0.32868247]
[1742097848515,2.47130862,609.21,608.49,0.32868247]
[1742097850223,2.47130862,609.24,608.49,0.32868247]
[1742097855159,2.47130862,609.25,608.49,0.32868247]
[1742097856844,2.47130862,609.24,608.49,0.32868247]
[1742097858560,2.47130862,609.39,608.49,0.32868247]
[1742097860346,2.47130862,609.33,608.49,0.32868247]
[1742097861632,2.47130862,609.41,608.49,0.32868247]
[1742097862431,2.47130862,609.41,608.5,1.02490152]
[1742097862631,2.47130862,609.41,608.51,1.02490152]
[1742097862829,2.47130862,609.41,608.52,1.0248342]
[1742097863036,2.47130862,609.41,608.53,1.0248342]
[1742097863227,2.47130862,609.41,608.54,1.0248342]
[1742097863434,2.47130862,609.41,608.49,0.32868247]
[1742097863736,0.32804093,609.68,608.5,1.02485253]
[1742097863933,0.32804093,609.68,608.51,1.02485253]
[1742097864139,0.32804093,609.68,608.52,1.02485253]
[1742097864336,0.32804093,609.68,608.53,1.02485253]
[1742097864532,0.32804093,609.68,608.54,1.02485253]
[1742097864735,0.32804093,609.68,608.49,0.32868247]
[1742097864936,0.32804093,609.68,608.5,1.02484304]
[1742097865136,0.32804093,609.68,608.51,1.02484304]
[1742097865338,0.32804093,609.68,608.51,1.17666168]
[1742097865937,0.32804093,609.68,608.52,1.467]
[1742097866939,0.32804093,609.68,608.52,3.136]
[1742097867639,0.32804093,609.68,608.53,1.02481261]
[1742097867844,0.32804093,609.68,608.52,3.136]
[1742097869435,2.47130862,609.63,608.52,3.136]
[1742097870740,2.47130862,609.65,608.52,3.136]
[1742097870940,2.47130862,609.65,608.52,4.522]
[1742097873042,2.47130862,609.64,608.52,4.522]
[1742097876942,2.47130862,609.67,608.52,4.522]
[1742097878144,2.47130862,609.65,608.52,4.522]
[1742097880846,2.47130862,609.64,608.52,4.522]
[1742097882850,2.47130862,609.66,608.52,4.522]
[1742097884251,2.47130862,609.59,608.52,4.522]
[1742097886044,2.47130862,609.62,608.52,4.522]
[1742097891252,2.47130862,609.55,608.52,4.522]
[1742097892752,0.32804093,609.68,608.52,4.522]
[1742097894450,0.32804093,609.68,608.52,6.116]
[1742097928688,2.47130862,609.47,608.52,6.116]
[1742097929889,2.47130862,609.45,608.52,6.116]
[1742097933990,2.47130862,609.44,608.52,6.116]
[1742097935692,2.47130862,609.31,608.52,6.116]
[1742097937787,2.47130862,609.41,608.52,6.116]
[1742097938891,2.47130862,609.4,608.52,6.116]
[1742097940194,2.47130862,609.47,608.52,6.116]
[1742097940993,2.47130862,609.46,608.52,6.116]
[1742097942599,2.47130862,609.49,608.52,6.116]
[1742097944203,2.47130862,609.53,608.52,6.116]
[1742097947009,2.47130862,609.41,608.52,6.116]
[1742097949809,2.47130862,609.34,608.52,6.116]
[1742097951610,2.47130862,609.15,608.52,6.116]
[1742097953210,2.47130862,609.09,608.52,6.116]
[1742097957210,2.47130862,609.07,608.52,6.116]
[1742097957511,2.47130862,609.07,608.49,0.32868247]
[1742097959209,2.47130862,609.56,608.49,0.32868247]
[1742097959210,2.47130862,609.09,608.49,0.32868247]
[1742097960013,2.47130862,609.09,608.5,1.549]
[1742097960913,2.47130862,609.09,608.51,2.131]
[1742097961515,2.47130862,609.32,608.51,2.131]
[1742097961516,2.47130862,609.32,608.52,1.338]
[1742097963615,2.47130862,609.33,608.52,1.338]
[1742097965012,2.47130862,609.49,608.52,1.338]
[1742097966010,2.47130862,609.49,608.53,1.02563565]
[1742097966214,2.47130862,609.49,608.52,1.338]
[1742097966412,2.47130862,609.52,608.52,1.338]
[1742097966912,2.47130862,609.52,608.52,2.726]
[1742097967114,2.47130862,609.52,608.53,1.02557501]
[1742097967417,2.47130862,609.52,608.54,1.02557501]
[1742097967620,2.47130862,609.52,608.55,1.02557501]
[1742097967820,2.47130862,609.52,608.52,2.726]
[1742097968016,2.47130862,609.52,608.53,1.0255333]
[1742097968220,2.47130862,609.52,608.54,1.0255333]
[1742097968519,2.47130862,609.58,608.55,1.0255333]
[1742097968815,2.47130862,609.58,608.52,2.726]
[1742097969013,2.47130862,609.58,608.53,1.02548401]
[1742097969217,2.47130862,609.58,608.54,1.02548401]
[1742097969413,2.47130862,609.58,608.55,1.02545323]
[1742097969619,2.47130862,609.58,608.52,2.726]
[1742097969820,2.47130862,609.58,608.53,2.66579606]
[1742097970014,2.47130862,609.58,608.54,2.99445153]
[1742097970219,2.47130862,609.58,608.55,2.99444612]
[1742097970415,2.47130862,609.58,608.56,2.99444072]
[1742097970622,2.47130862,609.57,608.57,2.99443532]
[1742097970822,2.47130862,609.57,608.58,2.99442992]
[1742097971022,2.47130862,609.57,608.59,2.99442452]
[1742097971217,2.47130862,609.57,608.6,2.99441912]
[1742097971423,2.47130862,609.57,608.61,2.99441372]
[1742097971623,2.47130862,609.57,608.62,1.35403752]
[1742097971823,2.47130862,609.57,608.63,1.35403212]
[1742097972022,2.47130862,609.57,608.64,1.35402672]
[1742097972224,2.47130862,609.57,608.65,1.02542525]
[1742097972425,2.47130862,609.57,608.66,1.35401592]
[1742097972617,2.47130862,609.57,608.67,1.35401052]
[1742097972819,2.47130862,610.38,608.68,1.02237409]
[1742097973022,0.32767547,610.36,608.69,1.35094856]
[1742097973324,0.32767547,610.36,608.69,0.32857447]
[1742097973527,0.32767547,610.36,608.7,0.32856908]
[1742097975227,2.47130862,610.34,608.7,0.32856908]
[1742097976131,0.32769694,610.32,608.7,0.32856908]
[1742097978328,0.32769694,610.32,608.71,2.124]
[1742097978532,0.32769694,610.32,608.72,0.32855828]
[1742097992843,0.32769694,610.32,608.73,2.055]
[1742097998644,0.32769694,610.32,608.74,2.085]
[1742097998843,0.32769694,610.32,608.74,2.41354749]
[1742098001142,2.47130862,610.27,608.74,2.41354749]
[1742098001349,0.32772916,610.26,608.75,0.32854209]
[1742098013952,2.47130862,610.02,608.76,1.708]
[1742098014158,2.47130862,610.02,608.77,0.3285313]
[1742098014759,2.47130862,610.02,608.77,2.1355313]
[1742098015161,2.47130862,609.71,608.77,2.1355313]
[1742098017664,2.47130862,609.69,608.77,2.1355313]
[1742098020263,0.32772916,610.26,608.77,2.1355313]
[1742098024165,0.32772916,610.26,608.77,3.8825313]
[1742098028475,0.285624,610.25,608.77,3.8825313]
[1742098028867,0.32774527,610.23,608.77,3.8825313]
[1742098029568,0.32774527,610.23,608.77,5.6735313]
[1742098030175,2.47130862,609.94,608.77,5.6735313]
[1742098030671,0.32790648,609.93,608.77,5.6735313]
[1742098033674,2.47130862,609.9,608.77,5.6735313]
[1742098033873,0.32792798,609.89,608.77,5.6735313]
[1742098040682,2.47130862,609.87,608.77,5.6735313]
[1742098040880,0.32794411,609.86,608.77,5.6735313]
[1742098043087,2.47130862,609.85,608.77,5.6735313]
[1742098043289,0.32795487,609.84,608.77,5.6735313]
[1742098044689,2.47130862,609.83,608.77,5.6735313]
[1742098044890,0.32796562,609.82,608.77,5.6735313]
[1742098046489,2.47130862,609.81,608.77,5.6735313]
[1742098046690,0.32797638,609.8,608.77,5.6735313]
[1742098047786,0.32797638,609.8,608.77,7.7025313]
[1742098060799,0.32797638,609.8,608.77,7.374]
[1742098064002,2.47130862,609.59,608.77,7.374]
[1742098065201,0.32797638,609.8,608.77,7.374]
[1742098065202,2.47130862,609.61,608.77,7.374]
[1742098069106,0.32797638,609.8,608.77,7.374]
[1742098069107,2.47130862,609.47,608.77,7.374]
[1742098070107,2.47130862,609.57,608.77,7.374]
[1742098071203,2.47130862,609.56,608.77,7.374]
[1742098072809,2.47130862,609.59,608.77,7.374]
[1742098074009,2.47130862,609.65,608.77,7.374]
[1742098075310,0.32797638,609.8,608.77,7.374]
[1742098075311,2.47130862,609.61,608.77,7.374]
[1742098076913,2.47130862,609.6,608.77,7.374]
[1742098078617,2.47130862,609.59,608.77,7.374]
[1742098080914,2.47130862,609.49,608.77,7.374]
[1742098082515,2.47130862,609.45,608.77,7.374]
[1742098084622,2.47130862,609.46,608.77,7.374]
[1742098087132,0.32797638,609.8,608.77,7.374]
[1742098093727,2.47130862,609.69,608.77,7.374]
[1742098093931,0.32804093,609.68,608.77,7.374]
[1742098103439,2.47130862,609.64,608.77,7.374]
[1742098104934,0.32804093,609.68,608.77,7.374]
[1742098122848,2.47130862,609.53,608.77,7.374]
[1742098124346,2.47130862,609.65,608.77,7.374]
[1742098127949,2.47130862,609.66,608.77,7.374]
[1742098129850,2.47130862,609.63,608.77,7.374]
[1742098131351,2.47130862,609.55,608.77,7.374]
[1742098133053,2.47130862,609.54,608.77,7.374]
[1742098134358,2.47130862,609.44,608.77,7.374]
[1742098136260,2.47130862,609.41,608.77,7.374]
[1742098138061,2.47130862,609.37,608.77,7.374]
[1742098142260,0.32804093,609.68,608.77,7.374]
[1742098142261,2.47130862,609.23,608.77,7.374]
[1742098142556,2.47130862,609.23,607.7,1.22324391]
[1742098142762,2.47130862,609.23,607.72,0.32909892]
[1742098142959,2.47130862,609.23,607.73,2.96520631]
[1742098143159,2.47130862,609.23,607.74,2.96520631]
[1742098143360,2.47130862,609.23,607.75,2.96520631]
[1742098143662,2.47130862,609.25,607.76,2.96520631]
[1742098143965,2.47130862,609.25,607.78,0.32906643]
[1742098144168,2.47130862,609.25,607.79,2.96520631]
[1742098144366,2.47130862,609.25,607.81,0.32905019]
[1742098144559,2.47130862,609.25,607.82,2.96520631]
[1742098144759,2.47130862,609.25,607.84,0.32903395]
[1742098144962,2.47130862,609.25,607.85,2.96520631]
[1742098145164,2.47130862,609.25,607.87,0.32901771]
[1742098145366,2.47130862,609.25,607.88,2.66335898]
[1742098145566,2.47130862,609.25,607.9,0.32900148]
[1742098145865,2.47130862,609.25,607.91,2.66335898]
[1742098146067,0.32804093,609.68,607.93,0.32898524]
[1742098146258,0.32804093,609.68,607.94,2.66335898]
[1742098146460,0.32804093,609.68,607.95,2.66335898]
[1742098146666,0.32804093,609.68,607.97,0.3289636]
[1742098146860,0.32804093,609.68,607.98,2.66335898]
[1742098147064,0.32804093,609.68,608.0,0.32894736]
[1742098147265,0.32804093,609.68,608.01,2.66335898]
[1742098147467,0.32804093,609.68,608.02,2.66335898]
[1742098147767,0.32804093,609.68,608.03,2.66335898]
[1742098147967,0.32804093,609.68,608.04,2.9922847]
[1742098148168,0.32804093,609.68,608.06,0.3289149]